fUST/lending_fUST_20250511
["ID","MTS","AMOUNT","RATE_DAILY","PERIOD"]
[360632266,1746912638746,-400.0,8.219e-05,2]
[360632268,1746912638755,-1967.65,8.219e-05,2]
[360632270,1746912638764,-400.0,8.219e-05,2]
[360632272,1746912638774,-3088.11,8.219e-05,2]
[360632274,1746912638783,-400.0,8.219e-05,2]
[360632276,1746912638792,-1232.95,8.219e-05,2]
[360632278,1746912638801,-1041.57,8.219e-05,2]
[360632280,1746912638810,-400.0,8.219e-05,2]
[360632282,1746912638820,-700.78,8.219e-05,2]
[360632284,1746912638829,-4783.86,8.219e-05,2]
[360632286,1746912638838,-407.69,8.219e-05,2]
[360632288,1746912638847,-1652.45,8.219e-05,2]
[360632290,1746912638856,-203.0,8.219e-05,2]
[360632291,1746912638866,-151.0,8.219e-05,2]
[360632294,1746912638875,-151.0,8.219e-05,2]
[360632295,1746912638884,-151.0,8.219e-05,2]
[360632297,1746912638893,-151.0,8.219e-05,2]
[360632300,1746912638902,-400.0,8.219e-05,2]
[360632301,1746912638911,-151.0,8.219e-05,2]
[360632303,1746912638920,-400.0,8.219e-05,2]
[360632305,1746912638929,-151.0,8.219e-05,2]
[360632307,1746912638939,-444.01,8.219e-05,2]
[360632309,1746912638948,-1176.69,8.219e-05,2]
[360632311,1746912638957,-513.96,8.219e-05,2]
[360632313,1746912638967,-400.0,8.219e-05,2]
[360632315,1746912638976,-656.69,8.219e-05,2]
[360632317,1746912638986,-400.0,8.219e-05,2]
[360632320,1746912638995,-400.0,8.219e-05,2]
[360632322,1746912639005,-151.0,8.219e-05,2]
[360632340,1746912639173,-151.0,8.219e-05,2]
[360632341,1746912639183,-396.83649094,8.219e-05,2]
[360632342,1746912639193,-274.694286,8.219e-05,2]
[360632343,1746912639202,-1565.91,8.219e-05,2]
[360632344,1746912639211,-400.0,8.219e-05,2]
[360632345,1746912639220,-400.0,8.219e-05,2]
[360632346,1746912639231,-400.0,8.219e-05,2]
[360632347,1746912639244,-151.0,8.219e-05,2]
[360632348,1746912639254,-151.0,8.219e-05,2]
[360632349,1746912639263,-151.0,8.219e-05,2]
[360632350,1746912639273,-151.0,8.219e-05,2]
[360632351,1746912639282,-151.0,8.219e-05,2]
[360632352,1746912639292,-151.0,8.219e-05,2]
[360632353,1746912639301,-151.0,8.219e-05,2]
[360632354,1746912639310,-151.0,8.219e-05,2]
[360632356,1746912639320,-500.0,8.22e-05,2]
[360632358,1746912639330,-417.0,8.22e-05,2]
[360632360,1746912639340,-152.0,8.229e-05,2]
[360632362,1746912639350,-500.0,8.246e-05,2]
[360632364,1746912639359,-151.0,8.246e-05,2]
[360632366,1746912639371,-500.0,8.246e-05,2]
[360632368,1746912639380,-151.0,8.246e-05,2]
[360632370,1746912639389,-500.0,8.246e-05,2]
[360632372,1746912639399,-500.0,8.248e-05,2]
[360632374,1746912639408,-417.0,8.248e-05,2]
[360632376,1746912639418,-151.74443216,8.274e-05,2]
[360632377,1746912639427,-151.0,8.274e-05,2]
[360632378,1746912639437,-279.72579576,8.274e-05,2]
[360632379,1746912639447,-245.0,8.274e-05,2]
[360632380,1746912639460,-500.0,8.274e-05,2]
[360632382,1746912639470,-418.656098,8.274e-05,2]
[360632384,1746912639479,-418.656098,8.274e-05,2]
[360632386,1746912639488,-500.0,8.275e-05,2]
[360632388,1746912639498,-417.0,8.275e-05,2]
[360632390,1746912639507,-151.0,8.301e-05,2]
[360632392,1746912639516,-151.0,8.301e-05,2]
[360632393,1746912639526,-151.0,8.301e-05,2]
[360632394,1746912639535,-198.0,8.301e-05,2]
[360632395,1746912639544,-500.0,8.301e-05,2]
[360632396,1746912639554,-500.0,8.303e-05,2]
[360632397,1746912639564,-417.0,8.303e-05,2]
[360632398,1746912639573,-500.0,8.329e-05,2]
[360632399,1746912639582,-500.0,8.33e-05,2]
[360632400,1746912639592,-417.0,8.33e-05,2]
[360632401,1746912639602,-500.0,8.356e-05,2]
[360632402,1746912639611,-500.0,8.357e-05,2]
[360632403,1746912639620,-417.0,8.357e-05,2]
[360632404,1746912639630,-500.0,8.383e-05,2]
[360632405,1746912639640,-500.0,8.385e-05,2]
[360632407,1746912639649,-417.0,8.385e-05,2]
[360632409,1746912639658,-500.0,8.412e-05,2]
[360632411,1746912639668,-417.0,8.412e-05,2]
[360632412,1746912639677,-184.65974658,8.44e-05,2]
[360632415,1746912639686,-417.0,8.44e-05,2]
[360632418,1746912639696,-417.0,8.467e-05,2]
[360632421,1746912639705,-193.0,8.476e-05,2]
[360632424,1746912639715,-1136.73435364,8.478e-05,2]
[360632426,1746912639724,-151.0,8.492e-05,2]
[360632428,1746912639733,-151.0,8.492e-05,2]
[360632430,1746912639742,-1789.29,8.492e-05,2]
[360632432,1746912639751,-1789.29,8.492e-05,2]
[360632434,1746912639760,-1789.29,8.492e-05,2]
[360632436,1746912639769,-1789.29,8.492e-05,2]
[360632438,1746912639778,-1789.29,8.492e-05,2]
[360632440,1746912639787,-1789.29,8.492e-05,2]
[360632442,1746912639796,-1789.29,8.492e-05,2]
[360632444,1746912639806,-167.482442,8.492e-05,2]
[360632446,1746912639815,-167.482442,8.492e-05,2]
[360632448,1746912639824,-151.0,8.492e-05,2]
[360632450,1746912639834,-500.0,8.493e-05,2]
[360632452,1746912639843,-450.55,8.493e-05,2]
[360632454,1746912639852,-400.0,8.493e-05,2]
[360632455,1746912639862,-400.0,8.493e-05,2]
[360632456,1746912639871,-400.0,8.493e-05,2]
[360632457,1746912639880,-400.0,8.493e-05,2]
[360632458,1746912639890,-400.0,8.493e-05,2]
[360632459,1746912639899,-400.0,8.493e-05,2]
[360632460,1746912639910,-400.0,8.493e-05,2]
[360632461,1746912639921,-500.0,8.493e-05,2]
[360632462,1746912639931,-1012.95823489,8.493e-05,2]
[360632463,1746912639944,-400.0,8.493e-05,2]
[360632464,1746912639954,-400.0,8.493e-05,2]
[360632465,1746912639963,-526.33445745,8.493e-05,2]
[360632466,1746912639974,-400.0,8.493e-05,2]
[360632467,1746912639985,-400.0,8.493e-05,2]
[360632468,1746912639995,-400.0,8.493e-05,2]
[360632469,1746912640005,-416.29879969,8.493e-05,2]
[360632470,1746912640015,-416.17390868,8.493e-05,2]
[360632471,1746912640026,-357.93327731,8.493e-05,2]
[360632472,1746912640035,-400.0,8.493e-05,2]
[360632473,1746912640044,-483.15,8.493e-05,2]
[360632474,1746912640053,-400.0,8.493e-05,2]
[360632475,1746912640062,-402.78778594,8.493e-05,2]
[360632476,1746912640072,-400.0,8.493e-05,2]
[360632477,1746912640081,-428.4730841,8.493e-05,2]
[360632478,1746912640090,-400.0,8.493e-05,2]
[360632479,1746912640099,-406.30568216,8.493e-05,2]
[360632480,1746912640108,-400.0,8.493e-05,2]
[360632481,1746912640118,-404.90941469,8.493e-05,2]
[360632482,1746912640127,-401.75352818,8.493e-05,2]
[360632483,1746912640137,-403.7051304,8.493e-05,2]
[360632484,1746912640147,-400.0,8.493e-05,2]
[360632485,1746912640157,-416.15390676,8.493e-05,2]
[360632486,1746912640167,-400.0,8.493e-05,2]
[360632487,1746912640176,-413.63376138,8.493e-05,2]
[360632488,1746912640186,-400.0,8.493e-05,2]
[360632489,1746912640195,-400.0,8.493e-05,2]
[360632490,1746912640205,-400.0,8.493e-05,2]
[360632491,1746912640214,-400.0,8.493e-05,2]
[360632492,1746912640223,-400.0,8.493e-05,2]
[360632493,1746912640234,-400.0,8.493e-05,2]
[360632494,1746912640244,-400.0,8.493e-05,2]
[360632495,1746912640254,-400.0,8.493e-05,2]
[360632496,1746912640264,-400.0,8.493e-05,2]
[360632497,1746912640273,-400.0,8.493e-05,2]
[360632498,1746912640282,-400.0,8.493e-05,2]
[360632499,1746912640292,-409.69151946,8.493e-05,2]
[360632500,1746912640301,-400.0,8.493e-05,2]
[360632501,1746912640311,-177.26110539,8.493e-05,2]
[360632502,1746912640320,-158.74753997,8.493e-05,2]
[360632503,1746912640330,-400.0,8.493e-05,2]
[360632504,1746912640340,-400.0,8.493e-05,2]
[360632505,1746912640350,-400.0,8.493e-05,2]
[360632506,1746912640359,-400.0,8.493e-05,2]
[360632507,1746912640370,-400.0,8.493e-05,2]
[360632508,1746912640382,-400.0,8.493e-05,2]
[360632509,1746912640391,-400.0,8.493e-05,2]
[360632510,1746912640400,-400.0,8.493e-05,2]
[360632511,1746912640412,-400.0,8.493e-05,2]
[360632512,1746912640421,-400.0,8.493e-05,2]
[360632513,1746912640435,-500.0,8.493e-05,2]
[360632514,1746912640446,-507.72690072,8.493e-05,2]
[360632515,1746912640457,-400.0,8.493e-05,2]
[360632516,1746912640467,-500.0,8.493e-05,2]
[360632517,1746912640476,-400.0,8.493e-05,2]
[360632518,1746912640486,-286.26099642,8.493e-05,2]
[360632519,1746912640496,-400.0,8.493e-05,2]
[360632520,1746912640506,-400.0,8.493e-05,2]
[360632521,1746912640515,-400.0,8.493e-05,2]
[360632522,1746912640525,-406.06723457,8.493e-05,2]
[360632523,1746912640535,-400.0,8.493e-05,2]
[360632524,1746912640546,-400.0,8.493e-05,2]
[360632525,1746912640558,-400.0,8.493e-05,2]
[360632526,1746912640567,-500.0,8.493e-05,2]
[360632527,1746912640577,-400.0,8.493e-05,2]
[360632528,1746912640586,-400.0,8.493e-05,2]
[360632529,1746912640596,-502.49096545,8.493e-05,2]
[360632530,1746912640605,-504.9558037,8.493e-05,2]
[360632531,1746912640614,-400.0,8.493e-05,2]
[360632532,1746912640624,-400.0,8.493e-05,2]
[360632533,1746912640634,-500.0,8.493e-05,2]
[360632534,1746912640643,-400.0,8.493e-05,2]
[360632535,1746912640655,-400.0,8.493e-05,2]
[360632536,1746912640664,-219.176128,8.493e-05,2]
[360632537,1746912640674,-219.176128,8.493e-05,2]
[360632538,1746912640683,-400.0,8.493e-05,2]
[360632539,1746912640693,-219.176128,8.493e-05,2]
[360632540,1746912640702,-500.0,8.493e-05,2]
[360632541,1746912640711,-219.176128,8.493e-05,2]
[360632542,1746912640721,-219.176128,8.493e-05,2]
[360632543,1746912640730,-219.176128,8.493e-05,2]
[360632544,1746912640739,-219.176128,8.493e-05,2]
[360632545,1746912640748,-219.176128,8.493e-05,2]
[360632546,1746912640758,-509.73373487,8.493e-05,2]
[360632547,1746912640767,-400.0,8.493e-05,2]
[360632548,1746912640776,-267.14429,8.493e-05,2]
[360632549,1746912640786,-500.0,8.493e-05,2]
[360632550,1746912640796,-267.14429,8.493e-05,2]
[360632551,1746912640805,-267.14429,8.493e-05,2]
[360632552,1746912640814,-400.0,8.493e-05,2]
[360632553,1746912640824,-412.78807844,8.493e-05,2]
[360632554,1746912640833,-267.14429,8.493e-05,2]
[360632555,1746912640843,-400.0,8.493e-05,2]
[360632556,1746912640853,-400.0,8.493e-05,2]
[360632557,1746912640862,-267.14429,8.493e-05,2]
[360632558,1746912640871,-267.14429,8.493e-05,2]
[360632559,1746912640880,-267.14429,8.493e-05,2]
[360632560,1746912640890,-267.14429,8.493e-05,2]
[360632561,1746912640900,-503.93747476,8.493e-05,2]
[360632562,1746912640909,-400.0,8.493e-05,2]
[360632563,1746912640919,-767.08,8.493e-05,2]
[360632564,1746912640928,-400.0,8.493e-05,2]
[360632565,1746912640937,-300.0,8.493e-05,2]
[360632566,1746912640947,-523.05,8.493e-05,2]
[360632567,1746912640956,-400.0,8.493e-05,2]
[360632568,1746912640966,-400.0,8.493e-05,2]
[360632569,1746912640976,-400.0,8.493e-05,2]
[360632571,1746912640985,-400.0,8.493e-05,2]
[360632573,1746912640994,-428.69,8.493e-05,2]
[360632575,1746912641003,-400.0,8.493e-05,2]
[360632577,1746912641013,-1231.88,8.493e-05,2]
[360632579,1746912641022,-400.0,8.493e-05,2]
[360632581,1746912641032,-506.53293881,8.493e-05,2]
[360632583,1746912641041,-400.0,8.493e-05,2]
[360632585,1746912641050,-400.0,8.493e-05,2]
[360632587,1746912641059,-151.0,8.493e-05,2]
[360632589,1746912641068,-500.0,8.493e-05,2]
[360632591,1746912641077,-693.177992,8.493e-05,2]
[360632593,1746912641086,-693.177992,8.493e-05,2]
[360632595,1746912641096,-693.177992,8.493e-05,2]
[360632597,1746912641105,-693.177992,8.493e-05,2]
[360632599,1746912641114,-400.0,8.493e-05,2]
[360632601,1746912641123,-693.177992,8.493e-05,2]
[360632603,1746912641132,-400.0,8.493e-05,2]
[360632605,1746912641141,-693.177992,8.493e-05,2]
[360632607,1746912641150,-693.177992,8.493e-05,2]
[360632609,1746912641160,-693.177992,8.493e-05,2]
[360632611,1746912641169,-400.0,8.493e-05,2]
[360632613,1746912641178,-400.0,8.493e-05,2]
[360632614,1746912641187,-500.0,8.493e-05,2]
[360632615,1746912641197,-512.918226,8.493e-05,2]
[360632616,1746912641206,-512.918226,8.493e-05,2]
[360632617,1746912641215,-512.918226,8.493e-05,2]
[360632618,1746912641224,-426.70498696,8.493e-05,2]
[360632619,1746912641233,-512.918226,8.493e-05,2]
[360632620,1746912641243,-512.918226,8.493e-05,2]
[360632621,1746912641252,-512.918226,8.493e-05,2]
[360632622,1746912641262,-400.0,8.493e-05,2]
[360632623,1746912641271,-512.918226,8.493e-05,2]
[360632624,1746912641280,-512.918227,8.493e-05,2]
[360632625,1746912641289,-400.0,8.493e-05,2]
[360632626,1746912641299,-555.94,8.493e-05,2]
[360632627,1746912641308,-1008.55,8.493e-05,2]
[360632629,1746912641317,-500.0,8.493e-05,2]
[360632630,1746912641326,-400.0,8.493e-05,2]
[360632632,1746912641336,-632.05,8.493e-05,2]
[360632634,1746912641346,-407.0639326,8.493e-05,2]
[360632636,1746912641355,-1052.41,8.493e-05,2]
[360632638,1746912641369,-400.0,8.493e-05,2]
[360632640,1746912641379,-400.0,8.493e-05,2]
[360632642,1746912641389,-400.0,8.493e-05,2]
[360632644,1746912641399,-459.64,8.493e-05,2]
[360632646,1746912641409,-418.656098,8.493e-05,2]
[360632648,1746912641419,-418.656098,8.493e-05,2]
[360632650,1746912641428,-418.656098,8.493e-05,2]
[360632652,1746912641439,-470.28959974,8.493e-05,2]
[360632654,1746912641449,-225.5153535,8.493e-05,2]
[360632656,1746912641461,-418.656098,8.493e-05,2]
[360632658,1746912641470,-418.656098,8.493e-05,2]
[360632660,1746912641480,-468.37,8.493e-05,2]
[360632667,1746912641536,-418.656106,8.493e-05,2]
[360632669,1746912641546,-400.0,8.493e-05,2]
[360632671,1746912641556,-403.73,8.493e-05,2]
[360632673,1746912641565,-400.0,8.493e-05,2]
[360632675,1746912641574,-400.0,8.493e-05,2]
[360632677,1746912641584,-413.92,8.493e-05,2]
[360632679,1746912641594,-151.0,8.493e-05,2]
[360632681,1746912641604,-151.0,8.493e-05,2]
[360632683,1746912641613,-151.0,8.493e-05,2]
[360632686,1746912641623,-619.62,8.493e-05,2]
[360632688,1746912641633,-695.09,8.493e-05,2]
[360632690,1746912641642,-735.58,8.493e-05,2]
[360632692,1746912641652,-721.89,8.493e-05,2]
[360632694,1746912641661,-400.0,8.493e-05,2]
[360632696,1746912641671,-1548.4,8.493e-05,2]
[360632698,1746912641681,-2356.91,8.493e-05,2]
[360632700,1746912641691,-794.11,8.493e-05,2]
[360632702,1746912641700,-400.0,8.493e-05,2]
[360632704,1746912641709,-838.55,8.493e-05,2]
[360632706,1746912641718,-400.0,8.493e-05,2]
[360632707,1746912641727,-400.0,8.493e-05,2]
[360632709,1746912641738,-400.0,8.493e-05,2]
[360632711,1746912641747,-400.0,8.493e-05,2]
[360632713,1746912641756,-3381.21,8.493e-05,2]
[360632715,1746912641766,-400.0,8.493e-05,2]
[360632717,1746912641775,-400.0,8.493e-05,2]
[360632719,1746912641783,-2898.64,8.493e-05,2]
[360632721,1746912641792,-400.0,8.493e-05,2]
[360632723,1746912641802,-481.84,8.493e-05,2]
[360632725,1746912641811,-400.0,8.493e-05,2]
[360632727,1746912641822,-400.0,8.493e-05,2]
[360632729,1746912641832,-400.0,8.493e-05,2]
[360632731,1746912641841,-400.0,8.493e-05,2]
[360632733,1746912641851,-1333.51,8.493e-05,2]
[360632735,1746912641860,-400.0,8.493e-05,2]
[360632738,1746912641870,-633.58,8.493e-05,2]
[360632740,1746912641880,-400.0,8.493e-05,2]
[360632742,1746912641888,-400.0,8.493e-05,2]
[360632744,1746912641897,-400.0,8.493e-05,2]
[360632746,1746912641907,-400.0,8.493e-05,2]
[360632747,1746912641916,-400.0,8.493e-05,2]
[360632748,1746912641926,-400.0,8.493e-05,2]
[360632749,1746912641935,-400.0,8.493e-05,2]
[360632750,1746912641943,-494.9,8.493e-05,2]
[360632751,1746912641953,-400.0,8.493e-05,2]
[360632753,1746912641962,-513.57,8.493e-05,2]
[360632755,1746912641971,-802.91,8.493e-05,2]
[360632757,1746912641980,-505.78,8.493e-05,2]
[360632759,1746912641990,-626.66,8.493e-05,2]
[360632760,1746912641999,-400.0,8.493e-05,2]
[360632761,1746912642008,-809.51,8.493e-05,2]
[360632762,1746912642017,-400.0,8.493e-05,2]
[360632764,1746912642026,-400.0,8.493e-05,2]
[360632765,1746912642036,-152.29043678,8.493e-05,2]
[360632767,1746912642046,-151.0,8.493e-05,2]
[360632769,1746912642055,-151.0,8.493e-05,2]
[360632771,1746912642064,-151.0,8.493e-05,2]
[360632773,1746912642074,-400.0,8.493e-05,2]
[360632775,1746912642085,-842.73,8.493e-05,2]
[360632777,1746912642094,-697.59,8.493e-05,2]
[360632779,1746912642103,-1841.44,8.493e-05,2]
[360632780,1746912642112,-400.0,8.493e-05,2]
[360632782,1746912642122,-400.0,8.493e-05,2]
[360632784,1746912642131,-400.0,8.493e-05,2]
[360632786,1746912642140,-788.65,8.493e-05,2]
[360632788,1746912642150,-1039.37,8.493e-05,2]
[360632789,1746912642160,-400.0,8.493e-05,2]
[360632790,1746912642169,-400.0,8.493e-05,2]
[360632791,1746912642178,-400.0,8.493e-05,2]
[360632792,1746912642187,-569.05,8.493e-05,2]
[360632793,1746912642197,-2342.17,8.493e-05,2]
[360632794,1746912642206,-451.36,8.493e-05,2]
[360632795,1746912642215,-500.0,8.493e-05,2]
[360632796,1746912642225,-695.2,8.493e-05,2]
[360632797,1746912642234,-1028.56,8.493e-05,2]
[360632798,1746912642244,-498.13,8.493e-05,2]
[360632799,1746912642254,-400.0,8.493e-05,2]
[360632800,1746912642264,-2119.75,8.493e-05,2]
[360632801,1746912642273,-416.65388573,8.493e-05,2]
[360632802,1746912642282,-4434.68,8.493e-05,2]
[360632803,1746912642291,-935.35,8.493e-05,2]
[360632804,1746912642300,-680.96,8.493e-05,2]
[360632805,1746912642309,-400.0,8.493e-05,2]
[360632807,1746912642319,-626.61,8.493e-05,2]
[360632809,1746912642328,-424.95,8.493e-05,2]
[360632811,1746912642338,-1042.16,8.493e-05,2]
[360632813,1746912642348,-2312.88,8.493e-05,2]
[360632815,1746912642358,-400.0,8.493e-05,2]
[360632817,1746912642369,-400.0,8.493e-05,2]
[360632819,1746912642382,-400.0,8.493e-05,2]
[360632821,1746912642391,-688.73,8.493e-05,2]
[360632823,1746912642401,-400.0,8.493e-05,2]
[360632825,1746912642414,-439.66,8.493e-05,2]
[360632827,1746912642423,-706.22,8.493e-05,2]
[360632829,1746912642432,-1085.41,8.493e-05,2]
[360632832,1746912642442,-400.0,8.493e-05,2]
[360632834,1746912642451,-671.75,8.493e-05,2]
[360632836,1746912642462,-841.55,8.493e-05,2]
[360632838,1746912642471,-400.0,8.493e-05,2]
[360632840,1746912642481,-400.0,8.493e-05,2]
[360632843,1746912642490,-2146.14,8.493e-05,2]
[360632845,1746912642500,-405.61162556,8.493e-05,2]
[360632847,1746912642509,-1015.72,8.493e-05,2]
[360632849,1746912642519,-6440.41,8.493e-05,2]
[360632851,1746912642529,-400.0,8.493e-05,2]
[360632853,1746912642539,-1037.4,8.493e-05,2]
[360632855,1746912642548,-400.0,8.493e-05,2]
[360632857,1746912642557,-440.94,8.493e-05,2]
[360632859,1746912642567,-400.0,8.493e-05,2]
[360632861,1746912642576,-4790.07,8.493e-05,2]
[360632863,1746912642585,-1429.95,8.493e-05,2]
[360632865,1746912642595,-167.482442,8.493e-05,2]
[360632867,1746912642604,-167.482442,8.493e-05,2]
[360632870,1746912642613,-400.0,8.493e-05,2]
[360632872,1746912642623,-400.0,8.493e-05,2]
[360632874,1746912642633,-167.482442,8.493e-05,2]
[360632876,1746912642642,-167.48245,8.493e-05,2]
[360632879,1746912642651,-430.02,8.493e-05,2]
[360632881,1746912642662,-400.0,8.493e-05,2]
[360632883,1746912642672,-400.0,8.493e-05,2]
[360632885,1746912642681,-151.0,8.493e-05,2]
[360632887,1746912642691,-151.0,8.493e-05,2]
[360632889,1746912642700,-400.0,8.493e-05,2]
[360632891,1746912642710,-151.0,8.493e-05,2]
[360632892,1746912642719,-1223.02,8.493e-05,2]
[360632894,1746912642728,-848.59,8.493e-05,2]
[360632896,1746912642738,-400.0,8.493e-05,2]
[360632898,1746912642747,-2882.98,8.493e-05,2]
[360632900,1746912642756,-513.02,8.493e-05,2]
[360632902,1746912642766,-400.0,8.493e-05,2]
[360632904,1746912642776,-463.45,8.493e-05,2]
[360632906,1746912642785,-573.32,8.493e-05,2]
[360632908,1746912642795,-1204.18,8.493e-05,2]
[360632910,1746912642805,-1967.65,8.493e-05,2]
[360632912,1746912642814,-400.0,8.493e-05,2]
[360632914,1746912642823,-3088.11,8.493e-05,2]
[360632916,1746912642833,-400.0,8.493e-05,2]
[360632918,1746912642843,-1232.95,8.493e-05,2]
[360632920,1746912642852,-1041.57,8.493e-05,2]
[360632921,1746912642861,-700.78,8.493e-05,2]
[360632923,1746912642871,-4783.86,8.493e-05,2]
[360632925,1746912642880,-407.69,8.493e-05,2]
[360632927,1746912642889,-1652.45,8.493e-05,2]
[360632929,1746912642898,-444.01,8.493e-05,2]
[360632931,1746912642908,-1176.69,8.493e-05,2]
[360632933,1746912642917,-513.96,8.493e-05,2]
[360632935,1746912642927,-400.0,8.493e-05,2]
[360632937,1746912642937,-656.69,8.493e-05,2]
[360632939,1746912642946,-400.0,8.493e-05,2]
[360632941,1746912642955,-400.0,8.493e-05,2]
[360632943,1746912642964,-1565.91,8.493e-05,2]
[360632945,1746912642974,-400.0,8.493e-05,2]
[360632947,1746912642984,-400.0,8.493e-05,2]
[360632949,1746912642993,-417.0,8.494e-05,2]
[360632951,1746912643003,-153.94,8.515e-05,2]
[360632953,1746912643012,-417.0,8.522e-05,2]
[360632955,1746912643021,-417.0,8.549e-05,2]
[360632957,1746912643030,-207.4,8.552e-05,2]
[360632959,1746912643040,-155.0,8.552e-05,2]
[360632961,1746912643050,-151.0,8.552e-05,2]
[360632963,1746912643059,-151.0,8.552e-05,2]
[360632965,1746912643068,-151.0,8.552e-05,2]
[360632967,1746912643078,-151.0,8.552e-05,2]
[360632969,1746912643087,-180.90325254,8.552e-05,2]
[360632971,1746912643096,-417.0,8.577e-05,2]
[360632973,1746912643105,-417.0,8.604e-05,2]
[360632975,1746912643115,-417.0,8.631e-05,2]
[360632977,1746912643124,-417.0,8.659e-05,2]
[360632979,1746912643133,-500.0,8.674e-05,2]
[360632981,1746912643142,-500.0,8.674e-05,2]
[360632983,1746912643152,-417.0,8.686e-05,2]
[360632987,1746912643162,-1789.29,8.701e-05,2]
[360632989,1746912643171,-708.0,8.71e-05,2]
[360632992,1746912643180,-2239.0,8.71e-05,2]
[360632995,1746912643190,-404.0,8.71e-05,2]
[360632998,1746912643199,-546.0,8.71e-05,2]
[360633000,1746912643209,-417.0,8.714e-05,2]
[360633002,1746912643219,-247.0,8.73e-05,2]
[360633005,1746912643228,-417.0,8.741e-05,2]
[360633006,1746912643237,-219.176128,8.766e-05,2]
[360633007,1746912643247,-219.176128,8.766e-05,2]
[360633008,1746912643256,-267.14429,8.766e-05,2]
[360633009,1746912643266,-267.14429,8.766e-05,2]
[360633010,1746912643277,-693.177992,8.766e-05,2]
[360633011,1746912643286,-693.177992,8.766e-05,2]
[360633012,1746912643295,-1789.29,8.766e-05,2]
[360633013,1746912643305,-1789.29,8.766e-05,2]
[360633014,1746912643314,-1789.29,8.766e-05,2]
[360633015,1746912643323,-1789.29,8.766e-05,2]
[360633016,1746912643333,-1789.29,8.766e-05,2]
[360633017,1746912643342,-1789.29,8.766e-05,2]
[360633018,1746912643352,-1789.29,8.766e-05,2]
[360633020,1746912643361,-1789.29,8.766e-05,2]
[360633022,1746912643377,-1789.52193386,8.766e-05,2]
[360633024,1746912643387,-500.0,8.767e-05,2]
[360633026,1746912643396,-450.55,8.767e-05,2]
[360633028,1746912643406,-400.0,8.767e-05,2]
[360633030,1746912643417,-400.0,8.767e-05,2]
[360633032,1746912643427,-400.0,8.767e-05,2]
[360633034,1746912643437,-400.0,8.767e-05,2]
[360633036,1746912643448,-400.0,8.767e-05,2]
[360633038,1746912643458,-400.0,8.767e-05,2]
[360633040,1746912643468,-3112.8,8.767e-05,2]
[360633042,1746912643478,-3112.8,8.767e-05,2]
[360633044,1746912643488,-3112.8,8.767e-05,2]
[360633046,1746912643498,-3112.7,8.767e-05,2]
[360633048,1746912643510,-400.0,8.767e-05,2]
[360633051,1746912643520,-400.0,8.767e-05,2]
[360633053,1746912643530,-400.0,8.767e-05,2]
[360633054,1746912643539,-400.0,8.767e-05,2]
[360633056,1746912643549,-483.15,8.767e-05,2]
[360633059,1746912643559,-400.0,8.767e-05,2]
[360633061,1746912643568,-227.46391851,8.767e-05,2]
[360633063,1746912643586,-400.0,8.767e-05,2]
[360633065,1746912643595,-436.68905049,8.767e-05,2]
[360633066,1746912643605,-400.0,8.767e-05,2]
[360633069,1746912643614,-400.0,8.767e-05,2]
[360633071,1746912643624,-161.55,8.767e-05,2]
[360633073,1746912643633,-482.46978506,8.767e-05,2]
[360633075,1746912643643,-400.0,8.767e-05,2]
[360633077,1746912643652,-400.0,8.767e-05,2]
[360633078,1746912643661,-400.0,8.767e-05,2]
[360633081,1746912643671,-400.0,8.767e-05,2]
[360633083,1746912643681,-400.0,8.767e-05,2]
[360633085,1746912643690,-400.0,8.767e-05,2]
[360633087,1746912643699,-400.0,8.767e-05,2]
[360633089,1746912643709,-400.0,8.767e-05,2]
[360633091,1746912643718,-400.0,8.767e-05,2]
[360633093,1746912643727,-400.0,8.767e-05,2]
[360633094,1746912643736,-400.0,8.767e-05,2]
[360633096,1746912643745,-400.0,8.767e-05,2]